bitfinex/quotes_SOLUSD_20260223
["timestamp","ask_amount","ask_price","bid_price","bid_amount"]
[1771812968039,5.36086188,78.236,78.181,12.79074342]
[1771812968040,25.10186276,78.21,78.181,12.79074342]
[1771812968225,4.14953538,78.209,78.171,12.79246779]
[1771812968420,3.69383402,78.239,78.171,12.79246779]
[1771812968421,5.36086188,78.234,78.2,20.95232738]
[1771812968634,4.42466317,78.233,78.2,20.95232738]
[1771812968832,20.95232738,78.24,78.2,20.95232738]
[1771812969037,4.5,78.291,78.23,20.95232738]
[1771812969238,4.5,78.3,78.27,20.95232738]
[1771812969548,51.03314436,78.381,78.19,20.95232738]
[1771812969549,4.5,78.319,78.29,20.95232738]
[1771812969723,4.5,78.319,78.259,15.69251718]
[1771812969923,4.5,78.309,78.27,20.95232738]
[1771812971624,4.5,78.289,78.25,20.95232738]
[1771812971823,4.5,78.289,78.26,20.95232738]
[1771812972822,4.5,78.305,78.27,20.95232738]
[1771812974342,4.5,78.305,78.28,20.95232738]
[1771812974646,4.5,78.305,78.27,20.95232738]
[1771812974947,4.5,78.305,78.271,12.77612397]
[1771812976962,4.5,78.289,78.215,0.28432314]
[1771812977129,4.5,78.279,78.24,20.95232738]
[1771812977451,4.5,78.298,78.236,3.69383402]
[1771812977627,4.5,78.306,78.28,20.95232738]
[1771812978633,4.5,78.306,78.27,20.95232738]
[1771812978949,25.45232738,78.3,78.27,20.95232738]
[1771812979136,4.5,78.3,78.27,20.95232738]
[1771812979446,5.36086188,78.326,78.29,20.95232738]
[1771812979648,4.5,78.319,78.29,20.95232738]
[1771812979947,4.5,78.319,78.28,20.95232738]
[1771812980450,4.5,78.299,78.27,20.95232738]
[1771812981055,4.5,78.309,78.271,44.71643391]
[1771812981431,4.5,78.319,78.28,20.95232738]
[1771812983048,5.36086188,78.331,78.3,20.95232738]
[1771812983250,4.5,78.329,78.29,20.95232738]
[1771812983440,4.5,78.339,78.3,20.95232738]
[1771812984228,4.5,78.329,78.3,20.95232738]
[1771812985147,4.5,78.329,78.301,12.77122897]
[1771812985938,4.5,78.319,78.301,12.77122897]
[1771812986253,4.5,78.319,78.265,3.69383402]
[1771812986254,4.5,78.309,78.287,12.77351284]
[1771812988347,4.5,78.299,78.281,12.77449189]
[1771812988543,4.5,78.299,78.261,12.77775648]
[1771812988860,4.5,78.299,78.261,44.72214768]
[1771812989160,4.5,78.299,78.27,20.95232738]
[1771812989834,4.5,78.309,78.27,20.95232738]
[1771812990035,4.5,78.309,78.28,20.95232738]
[1771812991163,4.5,78.307,78.27,20.95232738]
[1771812991656,4.5,78.299,78.26,20.95232738]
[1771812991862,4.5,78.289,78.26,20.95232738]
[1771812992062,4.5,78.289,78.25,20.95232738]
[1771812992459,4.5,78.279,78.247,44.73014939]
[1771812992663,4.5,78.279,78.25,20.95232738]
[1771812993167,4.5,78.279,78.247,12.78004268]
[1771812993368,4.5,78.289,78.26,20.95232738]
[1771812993545,20.95232738,78.3,78.26,20.95232738]
[1771812993749,4.5,78.306,78.28,20.95232738]
[1771812993946,4.5,78.314,78.29,20.95232738]
[1771812994166,166.3,78.366,78.301,4.49991704]
[1771812994468,5.36086188,78.339,78.301,4.49991704]
[1771812994657,20.95232738,78.32,78.28,20.95232738]
[1771812994857,20.95232738,78.31,78.273,4.49991704]
[1771812995450,20.95232738,78.31,78.274,12.77563431]
[1771812996165,4.16517347,78.309,78.28,20.95232738]
[1771812996571,4.16517347,78.309,78.275,4.49991704]
[1771812996868,4.16517347,78.309,78.281,4.49991704]
[1771812997169,4.16517347,78.308,78.275,4.49991704]
[1771812998171,4.16517347,78.312,78.281,4.49991704]
[1771812998471,4.43470164,78.309,78.28,20.91531937]
[1771812999070,4.43470164,78.309,78.276,44.71357759]
[1771812999767,20.91531937,78.33,78.291,4.2083782]
[1771813000066,51.01966538,78.402,78.301,4.2083782]
[1771813000067,4.43470164,78.329,78.301,4.2083782]
[1771813000566,4.43470164,78.329,78.302,12.77106587]
[1771813000872,4.43470164,78.329,78.303,4.2083782]
[1771813001561,9.79556352,78.347,78.311,4.2083782]
[1771813001754,4.43470164,78.344,78.311,4.2083782]
[1771813002155,4.43470164,78.339,78.303,4.2083782]
[1771813002471,4.43470164,78.339,78.302,44.69873055]
[1771813002967,31.90767334,78.352,78.276,63.87653942]
[1771813002968,4.43470164,78.329,78.297,12.77186936]
[1771813003154,20.91531937,78.31,78.272,12.77596075]
[1771813003348,20.91531937,78.3,78.272,44.71586263]
[1771813003554,4.43470164,78.309,78.272,44.71586263]
[1771813004062,4.43470164,78.299,78.272,12.77596075]
[1771813004464,20.91531937,78.3,78.272,12.77596075]
[1771813004465,4.43470164,78.311,78.273,4.2083782]
[1771813004771,51.02523728,78.393,78.245,3.69383402]
[1771813004772,4.43470164,78.317,78.281,4.2083782]
[1771813004975,4.43470164,78.317,78.29,20.91531937]
[1771813005461,4.43470164,78.317,78.287,4.2083782]
[1771813005979,0.1,78.37,78.311,4.2083782]
[1771813006271,5.36086188,78.349,78.311,4.2083782]
[1771813006477,20.91531937,78.33,78.29,25.12369757]
[1771813006665,5.36086188,78.35,78.291,12.77286022]
[1771813006868,20.91531937,78.33,78.292,4.2083782]
[1771813007067,20.91531937,78.32,78.291,12.77286022]
[1771813007678,5.36086188,78.329,78.292,4.2083782]
[1771813007975,20.91531937,78.32,78.292,4.2083782]
[1771813008168,4.43470164,78.323,78.292,4.2083782]
[1771813008574,5.36086188,78.331,78.301,4.2083782]
[1771813008770,18.12734057,78.331,78.303,4.2083782]
[1771813008969,4.43470164,78.332,78.303,4.2083782]
[1771813009371,4.43470164,78.329,78.302,12.77106587]
[1771813009756,4.43470164,78.334,78.303,4.2083782]
[1771813009980,4.43470164,78.329,78.303,4.2083782]
[1771813010359,4.43470164,78.329,78.302,12.77106587]
[1771813011062,4.43470164,78.329,78.295,4.2083782]
[1771813011063,4.43470164,78.329,78.297,4.2083782]
[1771813011259,4.43470164,78.325,78.291,12.77281247]
[1771813011465,4.43470164,78.319,78.291,12.77281247]
[1771813013381,4.43470164,78.319,78.273,63.87857722]
[1771813013382,4.43470164,78.309,78.277,4.2083782]
[1771813013555,20.91531937,78.3,78.268,4.2083782]
[1771813013759,4.43470164,78.309,78.271,4.2083782]
[1771813014183,25.35002101,78.3,78.271,4.2083782]
[1771813014355,4.43470164,78.299,78.271,4.2083782]
[1771813014879,4.43470164,78.299,78.261,4.2083782]
[1771813015082,25.35002101,78.29,78.261,4.2083782]
[1771813015375,25.35002101,78.29,78.25,20.91531937]
[1771813015376,25.35002101,78.29,78.262,16.98597141]
[1771813015581,4.43470164,78.288,78.252,4.2083782]
[1771813016077,4.43470164,78.288,78.251,12.7793894]
[1771813016078,4.43470164,78.329,78.281,4.2083782]
[1771813016279,4.43470164,78.319,78.281,4.2083782]
[1771813016581,4.43470164,78.309,78.281,4.2083782]
[1771813016763,4.43470164,78.299,78.271,4.2083782]
[1771813017159,4.43470164,78.289,78.262,12.77759321]
[1771813017958,20.91531937,78.28,78.262,12.77759321]
[1771813018366,4.43470164,78.279,78.262,12.77759321]
[1771813018861,4.43470164,78.289,78.262,12.77759321]
[1771813019987,4.43470164,78.289,78.252,16.98760429]
[1771813020191,4.43470164,78.289,78.253,4.2083782]
[1771813020484,4.43470164,78.269,78.232,4.2083782]
[1771813020685,20.91531937,78.26,78.232,4.2083782]
[1771813020865,20.91531937,78.25,78.222,4.2083782]
[1771813021060,4.43470164,78.259,78.222,4.2083782]
[1771813021267,4.43470164,78.267,78.231,4.2083782]
[1771813021469,25.35002101,78.27,78.231,4.2083782]
[1771813021671,20.91531937,78.27,78.231,4.2083782]
[1771813021876,4.43470164,78.269,78.231,4.2083782]
[1771813022398,20.91531937,78.24,78.214,4.2083782]
[1771813022886,5.36086188,78.265,78.196,31.970635]
[1771813022887,4.43470164,78.229,78.196,31.970635]
[1771813023072,25.35002101,78.24,78.201,4.2083782]
[1771813023268,4.43470164,78.239,78.201,4.2083782]
[1771813023471,4.43470164,78.229,78.201,4.2083782]
[1771813024693,4.43470164,78.229,78.19,20.91531937]
[1771813024694,4.43470164,78.229,78.202,12.78739674]
[1771813024872,4.43470164,78.229,78.178,63.9564032]
[1771813024873,4.43470164,78.219,78.186,12.79001355]
[1771813025074,20.91531937,78.21,78.186,12.79001355]
[1771813025490,25.35002101,78.21,78.186,12.79001355]
[1771813026496,25.35002101,78.2,78.18,0.1]
[1771813026675,4.43470164,78.189,78.163,12.7937771]
[1771813026876,5.36086188,78.204,78.161,12.79410447]
[1771813026877,20.91531937,78.18,78.161,12.79410447]
[1771813027087,20.91531937,78.21,78.171,4.2083782]
[1771813027285,4.43470164,78.209,78.171,4.2083782]
[1771813028496,4.43470164,78.209,78.173,4.42180994]
[1771813030096,20.91531937,78.2,78.173,4.42180994]
[1771813030274,4.43470164,78.209,78.173,4.42180994]
[1771813030892,4.43470164,78.209,78.174,12.79197687]
[1771813031096,4.43470164,78.209,78.175,4.42180994]
[1771813031294,20.91531937,78.19,78.164,4.42180994]
[1771813031487,20.91531937,78.19,78.161,12.79410447]
[1771813031488,4.35648494,78.189,78.161,12.79410447]
[1771813032697,4.35648494,78.179,78.16,0.1]
[1771813032882,25.27180431,78.19,78.161,4.42180994]
[1771813033087,4.35648494,78.189,78.161,4.42180994]
[1771813035182,4.35648494,78.207,78.171,4.42180994]
[1771813036102,20.91531937,78.21,78.162,44.77879275]
[1771813036103,4.35648494,78.21,78.18,20.91531937]
[1771813036310,25.27180431,78.21,78.18,4.42180994]
[1771813036499,25.27180431,78.21,78.181,4.29557744]
[1771813036701,4.35648494,78.21,78.181,4.29557744]
[1771813036888,25.27180431,78.21,78.181,4.29557744]
[1771813037093,4.42480125,78.209,78.182,12.79066792]
[1771813037586,4.42480125,78.209,78.182,44.76733774]
[1771813038702,4.42480125,78.209,78.182,12.79066792]
[1771813039005,4.42480125,78.199,78.182,12.79066792]
[1771813039386,4.42480125,78.199,78.172,4.29557744]
[1771813039387,4.42480125,78.189,78.16,0.1]
[1771813039590,20.91531937,78.18,78.16,0.1]
[1771813040187,20.91531937,78.18,78.16,4.39557744]
[1771813040506,20.91531937,78.18,78.162,12.79394078]
[1771813040690,4.42480125,78.198,78.163,4.29557744]
[1771813041782,4.42480125,78.198,78.165,4.29557744]
[1771813042385,20.91531937,78.2,78.165,4.29557744]
[1771813043005,4.42480125,78.179,78.16,0.1]
[1771813043199,20.91531937,78.17,78.16,0.1]
[1771813043407,4.42480125,78.179,78.16,0.1]
[1771813043705,12.79132236,78.178,78.16,0.1]
[1771813043910,20.91531937,78.17,78.16,0.1]
[1771813044988,17.21612361,78.178,78.16,0.1]
[1771813046310,20.91531937,78.17,78.16,0.1]
[1771813047005,17.21612361,78.178,78.16,0.1]
[1771813048508,4.42480125,78.177,78.16,0.1]
[1771813048711,5.36086188,78.188,78.14,0.1]
[1771813048712,4.42480125,78.169,78.14,0.1]
[1771813048892,20.91531937,78.16,78.14,0.1]
[1771813049208,4.42480125,78.169,78.14,4.39557744]
[1771813051111,12.79295875,78.168,78.14,4.39557744]
[1771813051306,17.21776,78.168,78.14,4.39557744]
[1771813051915,4.42480125,78.167,78.14,4.39557744]
[1771813052296,4.42480125,78.179,78.141,4.29557744]
[1771813052497,9.78566313,78.188,78.151,4.29557744]
[1771813052699,4.42480125,78.209,78.171,4.29557744]
[1771813052900,12.78805084,78.198,78.171,4.29557744]
[1771813053099,4.42480125,78.179,78.155,4.29557744]
[1771813053710,20.91531937,78.17,78.147,4.29557744]
[1771813054216,20.91531937,78.17,78.141,12.79737909]
[1771813054217,20.91531937,78.21,78.161,4.29557744]
[1771813054402,12.78625222,78.209,78.181,4.29557744]
[1771813055316,4.42480125,78.213,78.181,4.29557744]
[1771813055696,4.42480125,78.213,78.183,4.29557744]
[1771813055897,17.20941574,78.22,78.183,4.29557744]
[1771813056097,38.12473511,78.22,78.183,4.29557744]
[1771813056293,4.42480125,78.227,78.191,4.29557744]
[1771813056814,5.36086188,78.244,78.182,44.76733774]
[1771813056815,4.42480125,78.244,78.211,4.29557744]
[1771813057318,4.42480125,78.252,78.221,4.29557744]
[1771813057717,21.14724438,78.26,78.212,12.78576177]
[1771813057718,0.2,78.26,78.241,4.29557744]
[1771813057915,4.42480125,78.279,78.251,4.29557744]
[1771813058215,12.77392071,78.285,78.251,4.29557744]
[1771813059499,4.22222054,78.269,78.227,4.41116271]
[1771813059822,4.22222054,78.269,78.215,3.69383402]
[1771813059823,4.22222054,78.269,78.231,4.41116271]
[1771813060023,4.22222054,78.259,78.231,4.41116271]
[1771813060198,4.22222054,78.259,78.222,4.41116271]
[1771813060398,20.94724438,78.24,78.213,4.41116271]
[1771813060600,4.22222054,78.249,78.213,4.41116271]
[1771813060800,4.22222054,78.259,78.221,4.41116271]
[1771813061626,4.22222054,78.259,78.19,20.94724438]
[1771813061627,4.22222054,78.239,78.211,4.41116271]
[1771813062343,20.94724438,78.23,78.195,4.41116271]
[1771813062524,20.94724438,78.22,78.195,4.41116271]
[1771813062706,4.22222054,78.219,78.189,12.78943124]
[1771813062906,4.22222054,78.228,78.191,4.41116271]
[1771813063526,4.22222054,78.219,78.187,12.78984997]
[1771813063718,4.22222054,78.217,78.187,12.78984997]
[1771813063911,4.22222054,78.217,78.181,17.20188606]
[1771813064304,5.36086188,78.227,78.191,4.41116271]
[1771813064305,4.22222054,78.226,78.191,4.41116271]
[1771813064520,4.22222054,78.226,78.181,44.76780217]
[1771813064824,4.22222054,78.219,78.182,4.41116271]
[1771813065323,4.22222054,78.229,78.201,4.41116271]
[1771813065627,4.22222054,78.219,78.185,12.79013198]
[1771813065830,4.22222054,78.28,78.2,20.94724438]
[1771813066014,4.22222054,78.239,78.2,25.35840709]
[1771813066221,4.22222054,78.239,78.201,4.41116271]
[1771813067017,4.22222054,78.229,78.201,4.41116271]
[1771813067223,4.22222054,78.229,78.192,4.41116271]
[1771813067422,4.22222054,78.229,78.165,3.69383402]
[1771813067423,4.22222054,78.209,78.173,4.41116271]
[1771813067628,4.22222054,78.209,78.175,4.41116271]
[1771813069637,4.22222054,78.209,78.181,4.41116271]
[1771813069834,4.22222054,78.207,78.176,12.79164961]
[1771813070217,20.94724438,78.2,78.176,12.79164961]
[1771813070523,4.22222054,78.207,78.176,12.79164961]
[1771813071640,4.22222054,78.207,78.176,4.41116271]
[1771813072235,20.94724438,78.2,78.172,4.41116271]
[1771813072420,17.00896324,78.206,78.172,4.41116271]
[1771813072622,4.22222054,78.206,78.172,4.41116271]
[1771813073439,4.22222054,78.189,78.15,20.94724438]
[1771813073618,4.22222054,78.179,78.144,12.7967325]
[1771813074525,4.22222054,78.179,78.15,25.35840709]
[1771813074836,12.78800895,78.199,78.171,4.41116271]
[1771813075146,63.91281566,78.232,78.18,20.94724438]
[1771813075147,4.22222054,78.209,78.18,20.94724438]
[1771813075824,17.00856831,78.209,78.18,20.94724438]
[1771813076233,4.22222054,78.221,78.19,20.94724438]
[1771813076427,4.22222054,78.226,78.191,4.41116271]
[1771813077423,4.22222054,78.219,78.182,4.41116271]
[1771813078046,4.22222054,78.219,78.19,20.94724438]
[1771813078543,4.22222054,78.217,78.183,17.20166703]
[1771813079428,4.22222054,78.217,78.184,4.41116271]
[1771813079640,4.22222054,78.217,78.19,20.94724438]
[1771813080037,4.22222054,78.215,78.18,20.94724438]
[1771813080238,4.22222054,78.215,78.171,17.2036305]
[1771813080545,4.22222054,78.215,78.171,12.79246779]
[1771813080741,5.36086188,78.214,78.18,20.94724438]
[1771813080919,12.7851079,78.216,78.163,17.20480848]
[1771813080920,4.22222054,78.19,78.163,17.20480848]
[1771813081544,4.22222054,78.19,78.16,20.94724438]
[1771813081735,20.94724438,78.18,78.142,4.41116271]
[1771813081940,4.22222054,78.179,78.142,4.41116271]
[1771813082340,4.22222054,78.177,78.143,12.79705155]
[1771813082640,5.36086188,78.188,78.151,4.41116271]
[1771813082842,4.22222054,78.179,78.151,4.41116271]
[1771813083024,4.22222054,78.179,78.143,17.20821426]
[1771813083224,4.22222054,78.179,78.144,4.41116271]
[1771813083444,4.22222054,78.169,78.14,0.1]
[1771813083833,4.22222054,78.169,78.141,12.79737909]
[1771813084434,4.22222054,78.197,78.141,4.41116271]
[1771813084635,4.22222054,78.189,78.16,25.35840709]
[1771813084828,5.36086188,78.196,78.161,4.41116271]
[1771813085024,0.1,78.37,78.14,44.89133226]
[1771813085025,4.22222054,78.219,78.172,4.41116271]
[1771813085338,4.22222054,78.189,78.15,20.94724438]
[1771813085537,31.95362438,78.239,78.14,33.84471947]
[1771813085538,4.22222054,78.179,78.14,33.84471947]
[1771813087054,4.22222054,78.179,78.14,21.04724438]
[1771813087353,20.94724438,78.18,78.14,4.51116271]
[1771813087642,4.22222054,78.179,78.15,20.94724438]
[1771813088449,4.22222054,78.179,78.141,4.41116271]
[1771813089139,4.19278306,78.178,78.142,12.79721532]
[1771813089747,4.19278306,78.178,78.15,20.94724438]
[1771813089953,4.19278306,78.198,78.17,20.94724438]
[1771813090149,4.19278306,78.198,78.161,4.15132755]
[1771813090447,4.19278306,78.207,78.171,4.15132755]
[1771813090645,20.94724438,78.2,78.171,4.15132755]
[1771813090830,4.19278306,78.189,78.16,20.94724438]
[1771813091250,4.19278306,78.189,78.161,12.79410447]
[1771813091447,4.19278306,78.187,78.156,12.79478609]
[1771813092450,20.94724438,78.18,78.156,12.79478609]
[1771813092655,4.19278306,78.179,78.144,12.79688779]
[1771813093537,20.94724438,78.18,78.144,12.79688779]
[1771813093538,4.19278306,78.177,78.144,12.79688779]
[1771813093942,12.79132236,78.178,78.144,12.79688779]
[1771813093943,4.19278306,78.169,78.144,12.79688779]
[1771813094552,4.19278306,78.179,78.145,4.15132755]
[1771813094739,4.19278306,78.178,78.144,12.79688779]
[1771813095250,4.19278306,78.169,78.14,0.1]
[1771813095457,4.19278306,78.168,78.14,0.1]
[1771813095639,4.19278306,78.159,78.14,0.1]
[1771813097257,4.27181589,78.178,78.141,4.30174927]
[1771813097440,20.94724438,78.19,78.151,4.30174927]
[1771813097636,4.27181589,78.189,78.16,20.94724438]
[1771813097955,4.27181589,78.189,78.151,4.30174927]
[1771813098134,4.27181589,78.199,78.161,4.30174927]
[1771813098752,4.27181589,78.198,78.161,4.30174927]
[1771813099248,25.21906027,78.19,78.162,12.79394078]
[1771813099753,4.27181589,78.189,78.162,12.79394078]
[1771813100456,4.27181589,78.179,78.14,21.04724438]
[1771813100658,4.27181589,78.169,78.141,12.79737909]
[1771813101242,4.27181589,78.169,78.14,21.04724438]
[1771813101552,4.27181589,78.167,78.14,0.1]
[1771813104551,4.27181589,78.165,78.14,0.1]
[1771813104752,4.27181589,78.165,78.14,21.04724438]
[1771813105763,4.27181589,78.165,78.141,12.79737909]
[1771813105962,4.27181589,78.165,78.14,21.04724438]
[1771813106145,4.27181589,78.165,78.136,12.79805267]
[1771813106146,4.27181589,78.159,78.12,20.94724438]
[1771813106457,4.27181589,78.159,78.13,20.94724438]
[1771813106766,12.79361342,78.164,78.131,4.30174927]
[1771813107264,12.79361342,78.164,78.111,12.80229417]
[1771813107265,4.27181589,78.139,78.111,12.80229417]
[1771813107650,4.27181589,78.139,78.112,4.30174927]
[1771813107854,4.27181589,78.137,78.11,0.1]
[1771813108166,20.94724438,78.13,78.106,9.89995369]
[1771813108367,4.27181589,78.129,78.106,9.89995369]
[1771813109449,4.27181589,78.129,78.1,33.75127148]
[1771813110861,4.27181589,78.14,78.11,20.94724438]
[1771813111368,4.27181589,78.139,78.1,12.8040271]
[1771813111576,4.27181589,78.129,78.1,20.94724438]
[1771813111755,4.27181589,78.129,78.095,12.8047894]
[1771813112157,4.27181589,78.129,78.1,20.94724438]
[1771813112381,4.27181589,78.129,78.101,4.30174927]
[1771813112553,4.27181589,78.139,78.11,20.94724438]
[1771813112753,12.79787043,78.138,78.11,20.94724438]
[1771813112953,4.27181589,78.137,78.11,33.74967199]
[1771813114053,4.27181589,78.137,78.11,12.80242761]
[1771813114356,4.27181589,78.137,78.102,12.8036078]
[1771813114876,4.27181589,78.136,78.11,20.94724438]
[1771813115455,4.27181589,78.136,78.103,4.30174927]
[1771813115773,4.27181589,78.136,78.11,20.94724438]
[1771813116573,4.27181589,78.143,78.111,4.30174927]
[1771813117271,4.27181589,78.141,78.111,4.30174927]
[1771813117470,4.27181589,78.141,78.112,12.80213027]
[1771813117779,4.27181589,78.139,78.107,12.80281052]
[1771813117968,4.27181589,78.139,78.103,4.30174927]
[1771813118983,4.27181589,78.139,78.104,12.80344156]
[1771813119184,12.79787043,78.138,78.104,12.80344156]
[1771813119487,12.79787043,78.138,78.1,33.81424512]
[1771813119488,4.35112555,78.129,78.1,33.81424512]
[1771813120474,4.35112555,78.137,78.11,21.01014791]
[1771813121771,4.35112555,78.135,78.109,12.80262197]
[1771813122082,4.35112555,78.135,78.11,21.01014791]
[1771813122584,4.35112555,78.135,78.109,12.80262197]
[1771813124496,4.35112555,78.134,78.109,12.80262197]
[1771813125609,21.01014791,78.13,78.1,4.05992575]
[1771813125782,4.35112555,78.129,78.099,12.80426125]
[1771813126086,4.35112555,78.129,78.101,16.86385911]
[1771813127273,4.35112555,78.129,78.102,4.05992575]
[1771813128103,4.35112555,78.146,78.111,4.05992575]
[1771813128274,4.35112555,78.139,78.103,12.80360549]
[1771813128475,4.35112555,78.129,78.1,21.01014791]
[1771813129591,4.35112555,78.129,78.101,12.80393336]
[1771813130199,4.35112555,78.139,78.102,4.05992575]
[1771813130502,4.35112555,78.139,78.11,21.01014791]
[1771813131208,5.36086188,78.157,78.101,44.81376678]
[1771813131209,4.35112555,78.169,78.131,4.05992575]
[1771813131376,4.35112555,78.169,78.15,21.01014791]
[1771813132185,4.35112555,78.158,78.106,4.05992575]
[1771813132492,4.35112555,78.158,78.12,21.01014791]
[1771813132675,4.35112555,78.158,78.13,21.01014791]
[1771813132877,4.35112555,78.158,78.12,21.01014791]
[1771813133278,4.35112555,78.156,78.12,21.01014791]
[1771813133476,4.35112555,78.156,78.121,12.80065539]
[1771813134177,4.35112555,78.156,78.12,21.01014791]
[1771813135089,21.01014791,78.15,78.12,21.01014791]
[1771813135288,4.35112555,78.149,78.115,12.80162357]
[1771813135912,4.35112555,78.149,78.107,12.80294979]
[1771813135913,12.79623278,78.148,78.107,12.80294979]
[1771813136082,4.35112555,78.139,78.11,21.01014791]
[1771813136398,4.35112555,78.139,78.107,12.80294979]
[1771813136587,4.35112555,78.139,78.11,21.01014791]
[1771813137602,4.35112555,78.152,78.12,21.01014791]
[1771813137901,4.35112555,78.152,78.111,12.80229417]
[1771813137902,4.35112555,78.152,78.13,21.01014791]
[1771813138280,63.94999339,78.187,78.111,12.80229417]
[1771813138281,4.35112555,78.158,78.14,21.01014791]
[1771813138487,51.12296424,78.243,78.15,21.01014791]
[1771813138488,4.35112555,78.167,78.15,21.01014791]
[1771813138676,21.01014791,78.19,78.15,21.01014791]
[1771813138677,4.35112555,78.185,78.15,21.01014791]
[1771813138997,4.35112555,78.179,78.14,21.01014791]
[1771813139178,4.35112555,78.179,78.15,21.01014791]
[1771813139789,12.79132236,78.178,78.15,21.01014791]
[1771813139994,4.35112555,78.186,78.16,21.01014791]
[1771813141104,4.35112555,78.178,78.14,21.01014791]
[1771813141286,4.35112555,78.168,78.14,21.01014791]
[1771813141689,4.35112555,78.168,78.126,12.79983616]
[1771813141997,4.35112555,78.168,78.13,21.01014791]
[1771813142404,4.35112555,78.166,78.13,33.80918092]
[1771813142905,4.35112555,78.174,78.15,21.01014791]
[1771813143702,5.36086188,78.187,78.13,44.79698514]
[1771813143703,4.35112555,78.203,78.161,4.05992575]
[1771813143883,4.35112555,78.203,78.13,44.79698514]
[1771813143884,4.35112555,78.211,78.19,21.01014791]
[1771813144300,4.35112555,78.199,78.146,4.05992575]
[1771813144603,4.35112555,78.189,78.16,25.07007366]
[1771813144800,4.35112555,78.198,78.16,21.01014791]
[1771813145004,4.35112555,78.189,78.154,4.05992575]
[1771813145177,4.35112555,78.189,78.16,21.01014791]
[1771813146002,12.78955329,78.189,78.16,33.8043856]
[1771813146204,4.35112555,78.188,78.16,33.8043856]
[1771813146905,4.35112555,78.188,78.155,12.79499463]
[1771813148302,4.35112555,78.188,78.16,21.01014791]
[1771813149121,4.35112555,78.188,78.152,4.40278116]
[1771813149298,4.35112555,78.188,78.16,21.01014791]
[1771813149494,4.36908659,78.186,78.152,4.40278116]
[1771813150515,4.36908659,78.186,78.145,12.79672403]
[1771813150516,4.36908659,78.212,78.18,21.01014791]
[1771813150718,4.36908659,78.209,78.18,21.01014791]
[1771813150914,4.36908659,78.199,78.161,4.40278116]
[1771813151094,4.36908659,78.199,78.17,21.01014791]
[1771813152211,4.36908659,78.189,78.16,21.01014791]
[1771813153103,4.36908659,78.187,78.15,21.01014791]
[1771813153309,4.36908659,78.179,78.14,21.01014791]
[1771813153616,3.69383402,78.194,78.137,12.79790535]
[1771813153617,4.36908659,78.199,78.17,21.01014791]
[1771813153814,4.36908659,78.199,78.17,25.41292907]
[1771813154002,4.36908659,78.198,78.161,4.40278116]
[1771813154800,4.36908659,78.198,78.16,21.01014791]
[1771813155214,4.36908659,78.198,78.17,21.01014791]
[1771813155514,4.36908659,78.196,78.17,21.01014791]
[1771813156823,4.36908659,78.196,78.16,21.01014791]
[1771813157319,4.12394564,78.189,78.16,21.01014791]
[1771813158019,4.12394564,78.187,78.15,33.80596412]
[1771813158215,4.12394564,78.187,78.15,21.01014791]
[1771813159099,4.12394564,78.187,78.151,12.79574157]
[1771813159706,4.12394564,78.187,78.15,21.01014791]
[1771813160303,4.12394564,78.185,78.16,21.01014791]
[1771813160708,4.12394564,78.189,78.17,21.01014791]
[1771813160907,4.12394564,78.198,78.17,25.24340554]
[1771813161108,12.78821438,78.197,78.17,25.24340554]
[1771813162420,4.12394564,78.196,78.17,21.01014791]
[1771813163208,4.12394564,78.196,78.17,8.38922669]
[1771813163824,4.12394564,78.196,78.161,4.23325763]
[1771813164720,4.12394564,78.194,78.161,4.23325763]
[1771813165528,4.12394564,78.194,78.16,8.38922669]
[1771813165724,5.36086188,78.189,78.147,12.7962702]
[1771813165926,4.12394564,78.179,78.15,8.38922669]
[1771813166226,4.12394564,78.179,78.144,4.23325763]
[1771813166616,4.12394564,78.177,78.15,8.38922669]
[1771813166819,4.12394564,78.177,78.145,12.79672403]
[1771813167010,4.12394564,78.168,78.14,8.38922669]
[1771813168420,3.69383402,78.194,78.14,8.38922669]
[1771813168421,44.77077363,78.176,78.141,4.23325763]
[1771813168624,12.79164961,78.176,78.15,8.38922669]
[1771813168820,5.36086188,78.172,78.14,8.38922669]
[1771813169025,4.12394564,78.169,78.14,8.38922669]
[1771813169740,16.91559525,78.176,78.15,8.38922669]
[1771813169917,4.12394564,78.175,78.15,8.38922669]
[1771813170318,4.12394564,78.175,78.14,4.23325763]
[1771813170524,4.12394564,78.173,78.14,8.38922669]
[1771813171137,4.12394564,78.173,78.141,4.23325763]
[1771813172641,16.91346846,78.189,78.161,4.23325763]
[1771813173029,4.12394564,78.203,78.17,20.98741083]
[1771813173241,4.12394564,78.199,78.16,20.98741083]
[1771813174135,4.12394564,78.189,78.16,20.98741083]
[1771813174527,4.12394564,78.179,78.142,4.23325763]
[1771813174726,4.12394564,78.179,78.14,20.98741083]
[1771813174727,4.12394564,78.179,78.144,4.23325763]
[1771813176146,4.12394564,78.179,78.141,12.79737909]
[1771813176340,4.12394564,78.179,78.141,17.03063672]
[1771813176541,12.79132236,78.178,78.141,17.03063672]
[1771813176840,4.12394564,78.177,78.141,12.79737909]